Cogmind - Beta 12 *** ADVENTURER MODE // 2023.04.07 @ 12:29:51 Player: Xero Result: Destroyed by B-86 Titan with Matter Neutralizer Performance ------------- Evolutions (7) 3500 Regions Visited (19) 3800 Robots Destroyed (113) 565 Value Destroyed (4659) 4659 Prototype IDs (25) 500 Alien Tech Used (3) 600 Bonus (2803) 2803 TOTAL SCORE: 16427 Bonus ------- High Alert Combat Kills 434 Follower Combat Kills 444 Entered Garrisons 200 Used RIF Installer 1000 Aligned with FarCom 300 Met Data Miner 300 Met Zhirov 300 Friendly Fire -175 Cogmind --------- Core Integrity 0/1300 Matter 114/300 Energy 84/100 System Corruption 5% Temperature Cool (9) Movement Core (50) Location -3/Research Parts ------- > --- POWER (2) -------- (None) > --- PROPULSION (4) --- (None) > --- UTILITY (13) ----- Terrain Scan Processor Improved Targeting Computer Advanced ECM Suite > --- WEAPON (2) ------- (None) > --- INVENTORY (5) ---- Advanced System Restoration Module Peak State ------------ > --- POWER ------------ Micro Fission Core Fusion Reactor > --- PROPULSION ------- Antigrav System Cooled Gravmag System Cooled Gravmag System Cooled Gravmag System > --- UTILITY ---------- Advanced Signal Interpreter Advanced Terrain Scanner Terrain Scan Processor 0b10 Decoder Chip [Scout] Improved Target Analyzer Improved Hardlight Generator Improved System Shield Relay Coupler [Hunter] Advanced System Restoration Module > --- WEAPON ----------- Matter Neutralizer Thunder Hammer > --- INVENTORY -------- Melee Analysis Suite Microactuators Advanced ECM Suite Dirty Bomb Trap [Rating: 98] Favorites ----------- Power Light Nuclear Core Engine Light Ion Engine Power Core Light Nuclear Core Reactor Fusion Reactor Propulsion Armored Treads Treads Armored Treads Leg Aluminum Leg Wheel Compact Wheel Hover Unit Gravmag System Flight Unit Field Propulsion Drive Utility Relay Coupler [Hunter] Device Improved Cooling System Storage Medium Storage Unit Processor Advanced Signal Interpreter Hackware Relay Coupler [Hunter] Protection Improved Medium Armor Plating Weapon Rocket Launcher Energy Gun Heavy Laser Energy Cannon Matter Neutralizer Ballistic Gun Light Assault Rifle Ballistic Cannon Battle Cannon Launcher Rocket Launcher Special Weapon Remote Datajack Impact Weapon Makeshift Hammer Slashing Weapon Katana Piercing Weapon Lance Special Melee Weapon Datajack Build | -11 -10 -10 -10 -9 -8 -8 -7 -6 -6 -6 -6 -5 -5 -5 -5 -5 -4 -4 -3 ------- Run | Jun Mat Min Exi Min Mat Gar Fac Fac Low Low Dat Pro Fac Upp Upp Zhi Pro Fac Res Slots Evolved 14 | . . . . . 4 . 2 2 . . . . 2 . . . . 2 2 Power 1 | . . . . . . . . 1 . . . . . . . . . . . Propulsion 2 | . . . . . 2 . . . . . . . . . . . . . . Utility 11 | . . . . . 2 . 2 1 . . . . 2 . . . . 2 2 Weapon . | . . . . . . . . . . . . . . . . . . . . Parts Attached 189 | 8 5 7 2 2 41 8 27 10 5 8 . 12 5 5 3 5 7 8 21 Power 29 | 2 1 2 . . 5 2 4 3 2 . . 1 . 3 . 1 1 2 . Engine 14 | 2 1 2 . . 4 1 2 2 . . . . . . . . . . . Core 14 | . . . . . 1 1 2 1 2 . . 1 . 3 . . 1 2 . Reactor 1 | . . . . . . . . . . . . . . . . 1 . . . Propulsion 55 | 2 2 1 1 . 13 . 11 2 2 4 . 1 3 1 . 3 1 . 8 Treads 10 | . . . . . 7 . 3 . . . . . . . . . . . . Leg 8 | . 2 1 1 . 4 . . . . . . . . . . . . . . Wheel 2 | 2 . . . . . . . . . . . . . . . . . . . Hover 20 | . . . . . 2 . 8 1 1 . . . . . . 3 1 . 4 Flight 15 | . . . . . . . . 1 1 4 . 1 3 1 . . . . 4 Utility 51 | 2 1 . 1 2 4 1 7 3 1 3 . 5 2 . 2 1 4 2 10 Device 29 | 1 . . 1 2 2 . 3 2 . 2 . 3 1 . . 1 3 . 8 Storage 2 | 1 1 . . . . . . . . . . . . . . . . . . Processor 12 | . . . . . 1 . 1 1 . 1 . 1 1 . 1 . 1 2 2 Hackware 6 | . . . . . . 1 3 . 1 . . 1 . . . . . . . Protection 2 | . . . . . 1 . . . . . . . . . 1 . . . . Artifact . | . . . . . . . . . . . . . . . . . . . . Weapon 54 | 2 1 4 . . 19 5 5 2 . 1 . 5 . 1 1 . 1 4 3 Energy Gun 13 | 1 . 1 . . 4 4 2 . . . . . . . . . . . 1 Energy Cannon 1 | . . . . . . . . . . . . . . . . . 1 . . Ballistic Gun 4 | 1 . . . . 2 . . . . . . . . . 1 . . . . Ballistic Cannon 5 | . . 2 . . 3 . . . . . . . . . . . . . . Launcher 10 | . 1 1 . . 7 . . . . . . . . . . . . 1 . Special Weapon 7 | . . . . . . 1 3 1 . . . . . . . . . . 2 Impact Weapon 9 | . . . . . . . . 1 . . . 5 . 1 . . . 2 . Slashing Weapon 3 | . . . . . 3 . . . . . . . . . . . . . . Piercing Weapon 1 | . . . . . . . . . . . . . . . . . . 1 . Special Melee Weapon 1 | . . . . . . . . . . 1 . . . . . . . . . Unidentified Prototypes 13 | . . . 1 1 1 . 2 2 . . . 1 . . . 4 . 1 . Parts Lost 50 | . . . . . 7 . 4 . . 1 . 5 3 1 1 3 . 6 19 Power 6 | . . . . . 1 . 1 . . . . 2 . . . . . 1 1 Propulsion 16 | . . . . . 4 . . . . . . 2 1 1 . . . 3 5 Utility 20 | . . . . . . . 2 . . 1 . 1 1 . 1 2 . 2 10 Weapon 8 | . . . . . 2 . 1 . . . . . 1 . . 1 . . 3 Highest Loss Streak 15 | . . . . . 7 . 4 . . 1 . 4 1 1 1 3 . 4 15 To Critical Strikes . | . . . . . . . . . . . . . . . . . . . . Average Slot Usage (%) 85 | . 99 100 100 98 87 98 77 92 100 92 86 76 47 51 71 64 68 75 52 Engine 5 | . 14 14 14 14 7 3 6 6 6 6 6 2 . . . . . . . Core 2 | . . . . . 1 5 . 6 6 6 6 2 . 2 5 . 1 2 2 Treads 13 | . . . . . 23 36 14 . . . . . . . . . . . . Leg 5 | . 27 28 28 28 9 . . . . . . . . . . . . . . Hover 5 | . . . . . . . 14 26 26 17 . . . . . 13 19 16 3 Flight 2 | . . . . . . . . . . 8 26 20 8 16 17 3 . . 4 Device 8 | . 14 14 14 12 11 10 7 8 6 6 6 2 . . . . 6 8 7 Storage 5 | . 14 14 14 14 9 9 3 . . . . . . . . . . . . Processor 6 | . . . . . 4 . 3 9 13 13 13 13 11 11 14 15 13 23 24 Hackware 9 | . . . . . . 7 13 20 25 20 20 25 22 17 16 11 11 8 2 Protection 2 | . . . . . 3 9 2 . . . . . . . 4 3 . . . Energy Gun 2 | . 12 4 . . 3 3 1 5 . . . . . . . . . . . Ballistic Gun 4 | . 14 14 14 14 7 3 . . . . . . . . 3 3 . . . Ballistic Cannon 1 | . . 9 14 14 2 . . . . . . . . . . . . . . Launcher 2 | . 2 . . . 2 7 . . . . . . . . . . . 1 . Special Weapon 1 | . . . . . . 1 6 6 6 3 . . . . . . . . . Naked Turns . | . . . . . . . . . . . . . . . . . . . . Heaviest Build 42 | 13 20 20 27 33 38 36 28 32 31 31 24 28 1 17 16 28 42 42 13 Greatest Support 84 | 32 32 30 30 30 80 80 84 36 36 36 24 24 27 27 24 33 44 44 46 Greatest Overweight (x) 8 | 1 . . 1 1 3 . 8 . 1 1 . 1 . . . 2 1 2 4 Average Overweight (x) . | . . . . . . . . . . . . . . . . . . . . Largest Inventory Capacity 10 | 8 10 10 10 10 10 10 10 5 5 5 5 5 5 5 5 5 5 5 5 Average Capacity 7 | 7 9 10 10 10 10 10 7 5 5 5 5 5 5 5 5 5 5 5 5 Most Carried 10 | 6 10 10 10 10 10 10 10 5 5 5 5 5 4 4 5 5 4 5 5 Average Carried 7 | 4 5 9 9 10 9 9 7 4 5 4 5 3 3 3 4 4 4 4 4 Final Capacity 10 | 8 10 10 10 10 10 10 5 5 5 5 5 5 5 5 5 5 5 5 5 Final Carried 10 | 6 10 10 9 10 10 10 5 5 5 5 5 4 3 4 5 4 4 5 1 Class Distribution -------------------- 59% | Mutant 18% | Hacker-Mutant 13% | Scavenger-Mutant 3% | Hacker-Sprinter Dominant Class ---------------- Mutant | -10/Materials Mutant | -10/Mines Mutant | -10/Exiles Mutant | -9/Mines Mutant | -8/Materials Mutant | -8/Garrison Scavenger-Mutant | -7/Factory Scavenger-Mutant | -6/Factory Scavenger-Mutant | -6/Lower Caves Scavenger-Mutant | -6/Lower Caves Hacker-Sprinter | -6/Data Miner Hacker-Mutant | -5/Proximity Caves Hacker-Mutant | -5/Factory Hacker-Mutant | -5/Upper Caves Hacker-Mutant | -5/Upper Caves Hacker-Mutant | -5/Zhirov Hacker-Mutant | -4/Proximity Caves Hacker-Scout | -4/Factory Hacker-Mutant | -3/Research Resources | -11 -10 -10 -10 -9 -8 -8 -7 -6 -6 -6 -6 -5 -5 -5 -5 -5 -4 -4 -3 ----------- Run | Jun Mat Min Exi Min Mat Gar Fac Fac Low Low Dat Pro Fac Upp Upp Zhi Pro Fac Res Matter Collected 3124 | 258 84 99 . . 867 499 408 . 213 98 . 135 . 80 105 77 99 60 42 Remotely . | . . . . . . . . . . . . . . . . . . . . Salvage Created 4063 | 39 94 112 . . 1371 680 307 . 273 114 . 195 . 82 50 301 259 116 70 Parts 197 | 6 4 12 . . 78 46 17 . 2 4 . 3 . 6 2 . 6 5 6 Haulers Intercepted 2 | . . . . . 2 . . . . . . . . . . . . . . Recyclers Shooed 4 | . . 1 . . 2 . 1 . . . . . . . . . . . . Parts Field Recycled . | . . . . . . . . . . . . . . . . . . . . Retrieved Matter . | . . . . . . . . . . . . . . . . . . . . Parts Self-Destructed 36 | . . . . . . . . . 4 1 . 21 . 5 2 . 3 . . Prevented 3 | . . . . . . . . . 1 1 . . . 1 . . . . . Kills | -11 -10 -10 -10 -9 -8 -8 -7 -6 -6 -6 -6 -5 -5 -5 -5 -5 -4 -4 -3 ------- Run | Jun Mat Min Exi Min Mat Gar Fac Fac Low Low Dat Pro Fac Upp Upp Zhi Pro Fac Res Combat Hostiles Destroyed 99 | . 2 8 . . 34 34 5 . . 3 . 2 . 4 1 . 2 3 1 Melee 16 | . . . . . 4 . 5 . . 1 . 1 . 2 . . . 3 . Guns 33 | . 2 3 . . 16 10 . . . . . . . . 1 . . . 1 Cannons 7 | . . 2 . . 3 . . . . . . . . . . . 2 . . AOE 38 | . . 3 . . 11 24 . . . . . . . . . . . . . Classes Destroyed 16 | 1 1 2 . . 8 1 1 . . 1 . 1 . . . . . . . Worker 2 | . . . . . 2 . . . . . . . . . . . . . . Builder 3 | . . . . . 2 . . . . . . . . . . . . . 1 Tunneler 2 | 2 . . . . . . . . . . . . . . . . . . . Hauler 2 | . . . . . 2 . . . . . . . . . . . . . . Recycler 3 | . . . . . 2 . 1 . . . . . . . . . . . . Drone 1 | . . . . . . . . . . . . 1 . . . . . . . Watcher 3 | . . . . . 1 1 . . . . . . . . . . . 1 . Swarmer 32 | . . 5 . . 5 11 . . . 2 . . . 4 . . 1 3 1 Grunt 45 | . 2 2 . . 18 20 2 . . . . 1 . . . . . . . Brawler 1 | . . . . . . . 1 . . . . . . . . . . . . Duelist 2 | . . . . . 2 . . . . . . . . . . . . . . Sentry 9 | . . . . . 8 1 . . . . . . . . . . . . . Hunter 1 | . . . . . 1 . . . . . . . . . . . . . . Programmer 6 | . . . . . . 2 2 . . . . . . . 1 . 1 . . Thief 1 | . . . . . . . . . . 1 . . . . . . . . . Assembled 1 | . . 1 . . . . . . . . . . . . . . . . . Best Kill Streak 9 | 2 1 3 . . 9 4 2 . . 2 . 1 . 4 1 . 1 3 1 Combat Bots Only 4 | . 1 3 . . 4 4 2 . . 2 . 1 . 4 1 . 1 3 1 Max Kills in Single Turn 4 | 1 1 3 . . 3 4 1 . . 1 . 1 . 1 1 . 1 1 1 Gunslinging . | . . . . . . . . . . . . . . . . . . . . Exploded 4 | . . 3 . . 2 4 . . . . . . . . . . . . . Melee 1 | . . . . . 1 . 1 . . 1 . 1 . 1 . . . 1 . Uniques/NPCs Destroyed . | . . . . . . . . . . . . . . . . . . . . Combat | -11 -10 -10 -10 -9 -8 -8 -7 -6 -6 -6 -6 -5 -5 -5 -5 -5 -4 -4 -3 -------- Run | Jun Mat Min Exi Min Mat Gar Fac Fac Low Low Dat Pro Fac Upp Upp Zhi Pro Fac Res Damage Taken 8690 | . 58 191 . . 1790 661 884 144 . 128 . 465 264 214 125 955 85 432 2294 Core 2412 | . 12 18 . . 173 38 116 14 . . . 30 182 57 10 376 20 65 1301 Absorbed by Shields 112 | . . . . . 100 . . . . . . . . . . . 6 6 . Redirected to Shielding 87 | . . . . . . . . . . . . . . . 4 83 . . . Core Remaining (%) 78 | 100 . . . 88 . 61 83 . . . . 94 . . . . 28 94 . Volleys Fired 297 | 3 9 13 . . 85 131 15 . . . . . . . 16 . 5 5 15 Largest 2 | 2 2 2 . . 2 2 1 . . . . . . . 1 . 1 1 1 Hottest 126 | 70 70 60 . . 126 102 50 . . . . . . . 35 . 105 105 65 Shots Fired 364 | 6 18 24 . . 120 139 15 . . . . . . . 16 . 6 5 15 Gun 259 | 6 18 18 . . 91 93 12 . . . . . . . 16 . . . 5 Cannon 29 | . . 4 . . 14 . . . . . . . . . . . 6 5 . Launcher 63 | . . 2 . . 15 46 . . . . . . . . . . . . . Special 13 | . . . . . . . 3 . . . . . . . . . . . 10 Kinetic 153 | 3 9 15 . . 72 38 . . . . . . . . 16 . . . . Thermal 118 | 3 9 7 . . 33 55 . . . . . . . . . . 6 5 . Explosive 63 | . . 2 . . 15 46 . . . . . . . . . . . . . Electromagnetic 17 | . . . . . . . 12 . . . . . . . . . . . 5 Robot Hit Streak 32 | 3 16 26 . . 32 17 6 . . . . . . . 9 . 2 6 11 Robot Miss Streak 3 | . 1 2 . . 3 1 3 . . . . . . . 2 . 1 . 1 Penetration Max . | . . . . . . . . . . . . . . . . . . . . Secondary Targets 1 | . . . . . 1 . . . . . . . . . . . . . . Max Gunslinging Chain 1 | . . . . . 1 . . . . . . . . . . . . . . Shots Hit Robots 304 | 3 16 15 . . 114 64 10 . 5 10 . 7 2 6 13 7 6 11 15 Core Hits 226 | 3 5 13 . . 100 70 14 . 1 1 . 2 . 1 2 2 3 5 4 Critical Kills 1 | . . . . . . . . . . . . . . 1 . . . . . Critical Parts Destroyed 6 | . . . . . . . . . 1 . . 1 . 1 1 1 1 . . Critical Strikes 15 | 1 2 . . . 2 1 1 . 1 . . 1 . 2 1 1 1 1 . Burn 5 | 1 2 . . . 1 1 . . . . . . . . . . . . . Destroy 1 | . . . . . . . . . . . . . . . 1 . . . . Corrupt 1 | . . . . . . . 1 . . . . . . . . . . . . Smash 6 | . . . . . . . . . 1 . . 1 . 2 . 1 1 . . Sever 1 | . . . . . 1 . . . . . . . . . . . . . . Impale 1 | . . . . . . . . . . . . . . . . . . 1 . Melee Attacks 83 | . . . . . 16 . . . 5 11 . 9 2 9 . 8 6 10 7 Impact 48 | . . . . . . . . . 5 11 . 8 . 9 . 8 6 1 . Slashing 16 | . . . . . 16 . . . . . . . . . . . . . . Piercing 16 | . . . . . . . . . . . . . . . . . . 9 7 Sneak Attacks 4 | . . . . . 3 . . . . . . . . . . . . . 1 Combat Hostiles . | . . . . . . . . . . . . . . . . . . . . Follow-up Attacks . | . . . . . . . . . . . . . . . . . . . . Damage Inflicted 11399 | 30 170 356 . . 3641 3318 258 . 395 508 . 389 . 299 397 680 412 438 108 Guns 3096 | 30 170 115 . . 1500 729 109 . . . . . . . 397 . . . 46 Cannons 621 | . . 53 . . 267 . . . . . . . . . . . 127 174 . Explosions 3999 | . . 178 . . 1232 2589 . . . . . . . . . . . . . Melee 3510 | . . . . . 628 . . . 395 508 . 389 . 299 . 680 285 264 62 Ramming 173 | . . 10 . . 14 . 149 . . . . . . . . . . . . Kinetic 2439 | 18 68 115 . . 1324 517 . . . . . . . . 397 . . . . Thermal 1123 | 12 102 53 . . 443 212 . . . . . . . . . . 127 174 . Explosive 3999 | . . 178 . . 1232 2589 . . . . . . . . . . . . . Electromagnetic 155 | . . . . . . . 109 . . . . . . . . . . . 46 Impact 2624 | . . . . . . . . . 395 508 . 389 . 299 . 680 285 68 . Slashing 628 | . . . . . 628 . . . . . . . . . . . . . . Piercing 258 | . . . . . . . . . . . . . . . . . . 196 62 Highest Corruption 5 | . . . . . . 2 4 2 2 2 2 2 . . 1 3 3 . 5 Average Corruption 1 | . . . . . . 1 2 1 2 2 2 2 . . 1 1 2 . 2 Corruption Purged 3 | . . . . . . . . . . . . . . . . . 3 . . Corruption Blocked . | . . . . . . . . . . . . . . . . . . . . Effects 63 | . . . . . . 28 11 . 3 5 . 6 . . . 2 5 . 3 Message Errors 12 | . . . . . . 6 1 . 1 2 . 2 . . . . . . . Matter Fused 18 | . . . . . . 4 3 . 1 1 . 2 . . . 1 4 . 2 Heat Flow Errors 8 | . . . . . . 7 1 . . . . . . . . . . . . Energy Discharges 9 | . . . . . . 3 3 . . 1 . 1 . . . 1 . . . Parts Fused 2 | . . . . . . 1 1 . . . . . . . . . . . . Data Loss (minor) 5 | . . . . . . 4 . . . . . 1 . . . . . . . Data Loss (major) 5 | . . . . . . . 2 . 1 1 . . . . . . . . 1 Misfires 2 | . . . . . . 1 . . . . . . . . . . 1 . . Alerts 1 | . . . . . . 1 . . . . . . . . . . . . . Weapon Failures 1 | . . . . . . 1 . . . . . . . . . . . . . Overload Shots . | . . . . . . . . . . . . . . . . . . . . Overflow Damage 1262 | . . . . . 41 22 . . 182 138 . 211 . 104 . 304 200 60 . Projectiles . | . . . . . . . . . . . . . . . . . . . . Explosions 43 | . . . . . 21 22 . . . . . . . . . . . . . Melee 1219 | . . . . . 20 . . . 182 138 . 211 . 104 . 304 200 60 . Knockbacks 12 | . . 1 . . 5 . . . . 3 . 1 . 1 . . . 1 . Impact 7 | . . 1 . . . . . . . 3 . 1 . 1 . . . 1 . Kinetic 5 | . . . . . 5 . . . . . . . . . . . . . . Secondary . | . . . . . . . . . . . . . . . . . . . . Self-Inflicted Damage 195 | . . 61 . . 12 73 49 . . . . . . . . . . . . Shots 8 | . . 2 . . 1 5 . . . . . . . . . . . . . Rammed 32 | . . . . . 4 . 28 . . . . . . . . . . . . Targets Rammed 40 | . . 2 . . 5 . 33 . . . . . . . . . . . . Kicked 3 | . . 2 . . 1 . . . . . . . . . . . . . . Crushed 5 | . . . . . . . 5 . . . . . . . . . . . . Highest Temperature 256 | 20 118 79 . . 114 144 256 . . . . . . . . . 70 94 . Average Temperature 43 | 15 53 29 . . 30 68 123 . . . . . . . . . 30 60 . Received Heat Transfer 1647 | . 42 45 . . 846 252 315 . . . . 12 18 . . 36 . 45 36 Siege Activations . | . . . . . . . . . . . . . . . . . . . . Robots Corrupted . | . . . . . . . . . . . . . . . . . . . . Combat Hostiles . | . . . . . . . . . . . . . . . . . . . . Parts Fried 7 | . . . . . . . 1 . 1 1 . 1 . 1 . . . 2 . Impact Corruptions 33 | . . . . . . . . . 7 6 . 5 . 4 . 4 6 1 . Robots Melted . | . . . . . . . . . . . . . . . . . . . . Combat Hostiles . | . . . . . . . . . . . . . . . . . . . . Parts Melted 3 | . 2 . . . . 1 . . . . . . . . . . . . . Heat Transferred 2474 | 111 444 125 . . 1036 462 . . . . . . . . . . 111 185 . Parts Sabotaged . | . . . . . . . . . . . . . . . . . . . . Parts Stolen 2 | . . . . . . . . . . 2 . . . . . . . . . Parts Stripped . | . . . . . . . . . . . . . . . . . . . . Power Chain Reactions . | . . . . . . . . . . . . . . . . . . . . Missiles Intercepted . | . . . . . . . . . . . . . . . . . . . . Alert | -11 -10 -10 -10 -9 -8 -8 -7 -6 -6 -6 -6 -5 -5 -5 -5 -5 -4 -4 -3 ------- Run | Jun Mat Min Exi Min Mat Gar Fac Fac Low Low Dat Pro Fac Upp Upp Zhi Pro Fac Res Peak Influence 1849 | 10 87 156 . . 294 1849 871 328 . . . . 527 . . . . 563 382 Initial 841 | . 5 . . . . 53 841 265 . . . . 318 . . . . 505 212 Average 464 | 4 32 70 . . 126 942 713 279 . . . . 429 . . . . 512 244 Maximum Alert Level 5 | . . . . . 1 5 3 1 . . . . 2 . . . . 2 1 Low Security (%) 39 | 100 100 100 . 100 81 7 . . . . . . . . . . . . 7 Level 1 17 | . . . . . 18 10 . 100 . . . . 42 . . . . 1 92 Level 2 17 | . . . . . . 23 37 . . . . . 57 . . . . 98 . Level 3 13 | . . . . . . 16 62 . . . . . . . . . . . . Level 4 8 | . . . . . . 29 . . . . . . . . . . . . . Level 5 3 | . . . . . . 12 . . . . . . . . . . . . . High Security . | . . . . . . . . . . . . . . . . . . . . Max Security . | . . . . . . . . . . . . . . . . . . . . Squads Dispatched 20 | . . . . 1 8 . 5 1 . . . . 2 . . . . 2 1 Investigation 3 | . . . . . 1 . 1 . . . . . 1 . . . . . . Extermination 6 | . . . . . . . 3 1 . . . . . . . . . 1 1 Reinforcement 6 | . . . . . 4 . . . . . . . 1 . . . . 1 . Assault 2 | . . . . 1 . . 1 . . . . . . . . . . . . Garrison 3 | . . . . . 3 . . . . . . . . . . . . . . Intercept . | . . . . . . . . . . . . . . . . . . . . Searches Triggered 2 | . . . . . . . . . . . . . 1 . . . . 1 . Construction Impeded 1 | . . . . . 1 . . . . . . . . . . . . . . Haulers Reinforced . | . . . . . . . . . . . . . . . . . . . . Active Scanning Responses . | . . . . . . . . . . . . . . . . . . . . Cargo Convoy Interrupts . | . . . . . . . . . . . . . . . . . . . . Stealth | -11 -10 -10 -10 -9 -8 -8 -7 -6 -6 -6 -6 -5 -5 -5 -5 -5 -4 -4 -3 --------- Run | Jun Mat Min Exi Min Mat Gar Fac Fac Low Low Dat Pro Fac Upp Upp Zhi Pro Fac Res Distress Signals 6 | . 1 . . . 4 . 1 . . . . . . . . . . . . Communications Jammed . | . . . . . . . . . . . . . . . . . . . . Distress Signals . | . . . . . . . . . . . . . . . . . . . . Times Spotted 226 | . 6 10 . 4 51 36 16 6 . 5 . 11 17 12 4 3 8 9 28 Peak Tracking Total 16 | . 2 3 . 4 6 5 5 6 . 3 . 5 9 5 3 3 2 4 16 Tactical Retreats 27 | . 1 1 . . 2 2 2 1 . . . 1 4 4 2 . 2 1 4 Traps | -11 -10 -10 -10 -9 -8 -8 -7 -6 -6 -6 -6 -5 -5 -5 -5 -5 -4 -4 -3 ------- Run | Jun Mat Min Exi Min Mat Gar Fac Fac Low Low Dat Pro Fac Upp Upp Zhi Pro Fac Res Traps Triggered 6 | . . . . . 1 2 1 1 . . . . . . . . . 1 . Indirectly . | . . . . . . . . . . . . . . . . . . . . Trap Hack Attempts . | . . . . . . . . . . . . . . . . . . . . Triggered . | . . . . . . . . . . . . . . . . . . . . Disarmed . | . . . . . . . . . . . . . . . . . . . . Reprogrammed . | . . . . . . . . . . . . . . . . . . . . Reused . | . . . . . . . . . . . . . . . . . . . . Traps Extracted . | . . . . . . . . . . . . . . . . . . . . Installed . | . . . . . . . . . . . . . . . . . . . . Triggered 1 | . . . . . . . . . . 1 . . . . . . . . . Most Traps Carried 1 | . . . . . . . . . . . . . . . 1 1 1 1 1 Machines | -11 -10 -10 -10 -9 -8 -8 -7 -6 -6 -6 -6 -5 -5 -5 -5 -5 -4 -4 -3 ---------- Run | Jun Mat Min Exi Min Mat Gar Fac Fac Low Low Dat Pro Fac Upp Upp Zhi Pro Fac Res Machines Disabled 15 | . . . . . 4 9 . . . . . 1 . . . 1 . . . Max in Single Turn 2 | . . . . . 1 2 . . . . . 1 . . . 1 . . . Garrison Relay 4 | . . . . . . 4 . . . . . . . . . . . . . Machines Repaired . | . . . . . . . . . . . . . . . . . . . . Machines Sabotaged . | . . . . . . . . . . . . . . . . . . . . Overloaded Fab Kills . | . . . . . . . . . . . . . . . . . . . . Hacking | -11 -10 -10 -10 -9 -8 -8 -7 -6 -6 -6 -6 -5 -5 -5 -5 -5 -4 -4 -3 --------- Run | Jun Mat Min Exi Min Mat Gar Fac Fac Low Low Dat Pro Fac Upp Upp Zhi Pro Fac Res Machines Accessed 37 | . 3 . 2 1 1 2 3 4 . . 4 1 3 . 1 9 . 2 1 Terminals 12 | . 2 . . . . 2 2 2 . . . . 1 . . . . 2 1 Fabricators 4 | . . . . . . . 1 1 . . . . 2 . . . . . . Repair Stations . | . . . . . . . . . . . . . . . . . . . . Recycling Units 1 | . 1 . . . . . . . . . . . . . . . . . . Scanalyzers 1 | . . . . . . . . 1 . . . . . . . . . . . Garrison Access 1 | . . . . . 1 . . . . . . . . . . . . . . Total Hacks 146 | . 7 . 32 1 1 3 6 9 . . 25 1 7 . 1 48 . 2 3 Successful 130 | . 6 . 32 1 1 1 3 6 . . 25 1 5 . 1 48 . . . Failed 16 | . 1 . . . . 2 3 3 . . . . 2 . . . . 2 3 Catastrophic 3 | . . . . . . 1 . . . . . . . . . . . 1 1 Database Lockouts . | . . . . . . . . . . . . . . . . . . . . Manual 2 | . . . 1 . . . 1 . . . . . . . . . . . . Terminals 22 | . 4 . . . . 3 5 2 . . . . 3 . . . . 2 3 Fabricators 7 | . . . . . . . 1 2 . . . . 4 . . . . . . Repair Stations . | . . . . . . . . . . . . . . . . . . . . Recycling Units 3 | . 3 . . . . . . . . . . . . . . . . . . Scanalyzers 5 | . . . . . . . . 5 . . . . . . . . . . . Garrison Access 1 | . . . . . 1 . . . . . . . . . . . . . . Terminal Hacks 118 | . 3 . 32 1 . 1 1 2 . . 25 1 3 . 1 48 . . . Record 80 | . . . 32 . . . . . . . 11 1 . . . 36 . . . Part Schematic 15 | . . . . . . . . . . . 11 . . . . 4 . . . Robot Schematic 3 | . . . . . . . . . . . 3 . . . . . . . . Robot Analysis 4 | . . . . . . . . . . . . . . . . 4 . . . Prototype ID Bank 4 | . . . . . . . . . . . . . . . . 4 . . . Open Door 2 | . . . . 1 . . . . . . . . . . 1 . . . . Open DSF 1 | . . . . . . . . 1 . . . . . . . . . . . Branch Access Points 1 | . . . . . . . . 1 . . . . . . . . . . . Emergency Access Points 1 | . . . . . . . . . . . . . 1 . . . . . . Alert Level 2 | . 1 . . . . . 1 . . . . . . . . . . . . Dispatch Records 1 | . 1 . . . . . . . . . . . . . . . . . . Maintenance Status 2 | . 1 . . . . . . . . . . . 1 . . . . . . Recall Extermination 1 | . . . . . . . . . . . . . 1 . . . . . . Garrison Registry 1 | . . . . . . 1 . . . . . . . . . . . . . Fabricator Hacks 4 | . . . . . . . 1 1 . . . . 2 . . . . . . Network Status 2 | . . . . . . . 1 1 . . . . . . . . . . . Load Schematic 1 | . . . . . . . . . . . . . 1 . . . . . . Build 1 | . . . . . . . . . . . . . 1 . . . . . . Repair Station Hacks . | . . . . . . . . . . . . . . . . . . . . Recycling Unit Hacks 3 | . 3 . . . . . . . . . . . . . . . . . . Recycle Component 1 | . 1 . . . . . . . . . . . . . . . . . . Retrieve Matter 2 | . 2 . . . . . . . . . . . . . . . . . . Scanalyzer 3 | . . . . . . . . 3 . . . . . . . . . . . Insert Component 1 | . . . . . . . . 1 . . . . . . . . . . . Analyze 2 | . . . . . . . . 2 . . . . . . . . . . . Garrison Access Hacks 1 | . . . . . 1 . . . . . . . . . . . . . . Unlock Access 1 | . . . . . 1 . . . . . . . . . . . . . . Unauthorized Hacks 1 | . . . . . . . 1 . . . . . . . . . . . . Terminals 1 | . . . . . . . 1 . . . . . . . . . . . . Assimilate 1 | . . . . . . . 1 . . . . . . . . . . . . Fabricators . | . . . . . . . . . . . . . . . . . . . . Repair Stations . | . . . . . . . . . . . . . . . . . . . . Recycling Units . | . . . . . . . . . . . . . . . . . . . . Scanalyzers . | . . . . . . . . . . . . . . . . . . . . Garrison Access . | . . . . . . . . . . . . . . . . . . . . Data Cores Recovered . | . . . . . . . . . . . . . . . . . . . . Used . | . . . . . . . . . . . . . . . . . . . . Hacking Detections 12 | . 1 . . . . 1 3 1 . . . . 3 . . . . 2 1 Full Trace Events 2 | . 1 . . . . . . . . . . . 1 . . . . . . Feedback Events . | . . . . . . . . . . . . . . . . . . . . Feedback Blocked . | . . . . . . . . . . . . . . . . . . . . Robot Schematics Acquired 3 | . . . . . . . . . . . 3 . . . . . . . . Robots Built 2 | . . . . . . . . . . . . . 2 . . . . . . Authchips . | . . . . . . . . . . . . . . . . . . . . Time 67 | . . . . . . . . . . . . . 67 . . . . . . Total Robot Build Rating 8 | . . . . . . . . . . . . . 8 . . . . . . Part Schematics Acquired 16 | . . . . . . . . 1 . . 11 . . . . 4 . . . Parts Built . | . . . . . . . . . . . . . . . . . . . . Authchips . | . . . . . . . . . . . . . . . . . . . . Time . | . . . . . . . . . . . . . . . . . . . . Total Part Build Rating . | . . . . . . . . . . . . . . . . . . . . Parts Repaired . | . . . . . . . . . . . . . . . . . . . . Time . | . . . . . . . . . . . . . . . . . . . . Parts Recycled 1 | . 1 . . . . . . . . . . . . . . . . . . Recycled Matter . | . . . . . . . . . . . . . . . . . . . . Retrieved Matter . | . . . . . . . . . . . . . . . . . . . . Retrieved Components . | . . . . . . . . . . . . . . . . . . . . Parts Scanalyzed 1 | . . . . . . . . 1 . . . . . . . . . . . Part Schematics Acquired 1 | . . . . . . . . 1 . . . . . . . . . . . Parts Damaged . | . . . . . . . . . . . . . . . . . . . . Bothacking | -11 -10 -10 -10 -9 -8 -8 -7 -6 -6 -6 -6 -5 -5 -5 -5 -5 -4 -4 -3 ------------ Run | Jun Mat Min Exi Min Mat Gar Fac Fac Low Low Dat Pro Fac Upp Upp Zhi Pro Fac Res Used RIF Installer 2 | . . . . . . 2 . . . . . . . . . . . . . Program Shield 1 | . . . . . . 1 . . . . . . . . . . . . . Robots Hacked 5 | . . . . . . . 2 . . . . 1 2 . . . . . . Non-combat 1 | . . . . . . . 1 . . . . . . . . . . . . Combat 4 | . . . . . . . 1 . . . . 1 2 . . . . . . Robot Hacks Applied 5 | . . . . . . . 2 . . . . 1 2 . . . . . . find_chute 1 | . . . . . . . 1 . . . . . . . . . . . . streamctrl_high 3 | . . . . . . . 1 . . . . . 2 . . . . . . formatsys_high 1 | . . . . . . . . . . . . 1 . . . . . . . Relay Couplers Released 16 | . . . . . . 16 . . . . . . . . . . . . . Machine Destruction 16 | . . . . . . 16 . . . . . . . . . . . . . Attached 3 | . . . . . . 1 2 . . . . . . . . . . . . Fabnet Peak Effective % . | . . . . . . . . . . . . . . . . . . . . Robots Rewired 1 | . . . . . . . . . . . . . . . . . . 1 . Allies Hacked . | . . . . . . . . . . . . . . . . . . . . Hacks Repelled . | . . . . . . . . . . . . . . . . . . . . Allies | -11 -10 -10 -10 -9 -8 -8 -7 -6 -6 -6 -6 -5 -5 -5 -5 -5 -4 -4 -3 -------- Run | Jun Mat Min Exi Min Mat Gar Fac Fac Low Low Dat Pro Fac Upp Upp Zhi Pro Fac Res Total Allies 11 | . . 2 . 1 . . 1 . . . . 2 4 . . . . 1 . Largest Group 2 | . . 2 1 1 1 . 1 . . . . 1 2 . . . . 1 . Highest-Rated Group 96 | . . 53 31 31 31 . 32 . . . . 96 80 . . . . 56 . Highest-Rated Ally 96 | . . 31 31 31 31 . 32 . . . . 96 40 . . . . 56 . Total Orders . | . . . . . . . . . . . . . . . . . . . . Ally Attacks 70 | . . 16 . 1 5 . 5 . . . . 18 13 . . . . 12 . Total Damage 2047 | . . 127 . 20 81 . 300 . . . . 767 268 . . . . 484 . Kills 17 | . . 1 . . 1 . 2 . . . . 7 3 . . . . 3 . Allies Corrupted . | . . . . . . . . . . . . . . . . . . . . Allies Melted . | . . . . . . . . . . . . . . . . . . . . Intel | -11 -10 -10 -10 -9 -8 -8 -7 -6 -6 -6 -6 -5 -5 -5 -5 -5 -4 -4 -3 ------- Run | Jun Mat Min Exi Min Mat Gar Fac Fac Low Low Dat Pro Fac Upp Upp Zhi Pro Fac Res Robot Analysis Total 4 | . . . . . . . . . . . . . . . . 4 . . . Derelict Logs Recovered 7 | . . 1 . . . . . . . 1 . 1 . . 3 . 1 . . Drone Launches 26 | . . . . 20 6 . . . . . . . . . . . . . . Drone Recoveries 22 | . . . . . 22 . . . . . . . . . . . . . . Decoded 0b10 Intel 13 | . . . . . . . . . . . . . . . . . . 8 5 Traps 8 | . . . . . . . . . . . . . . . . . . 4 4 Emergency Access 5 | . . . . . . . . . . . . . . . . . . 4 1 Exploration | -11 -10 -10 -10 -9 -8 -8 -7 -6 -6 -6 -6 -5 -5 -5 -5 -5 -4 -4 -3 ------------- Run | Jun Mat Min Exi Min Mat Gar Fac Fac Low Low Dat Pro Fac Upp Upp Zhi Pro Fac Res Turns Passed 12137 | 112 425 739 430 318 2025 2557 1145 393 401 452 29 698 314 262 444 320 347 369 357 Spaces Moved 12577 | 72 307 552 315 156 971 1236 642 641 776 939 92 1239 475 491 1170 626 751 605 521 Core 47 | 7 . . . . 5 . 22 . . . . . . . . . . . 13 Treads 2279 | . . . . . 809 1236 234 . . . . . . . . . . . . Legs 1356 | . 293 552 315 156 40 . . . . . . . . . . . . . . Wheels 79 | 65 14 . . . . . . . . . . . . . . . . . . Hover 4440 | . . . . . 117 . 386 641 776 485 . . . . . 476 751 605 203 Flight 4376 | . . . . . . . . . . 454 92 1239 475 491 1170 150 . . 305 Fastest Speed 31 | 50 100 120 130 130 56 170 48 48 48 31 31 31 37 34 34 34 40 40 39 Average Speed 74 | 97 119 124 135 191 148 170 105 48 48 40 31 35 38 36 34 41 41 43 43 Slowest Speed 450 | 100 120 130 210 200 200 170 450 48 112 115 31 111 40 39 34 197 92 150 250 Overloaded Moves . | . . . . . . . . . . . . . . . . . . . . Propulsion Burnouts . | . . . . . . . . . . . . . . . . . . . . Robots Hopped . | . . . . . . . . . . . . . . . . . . . . Cave-ins Triggered 1 | . . . . . . . . . . . . . . . . 1 . . . Teleports 1 | . . . . . . . . . . . . . . . . 1 . . . Exploration Rate (%) 57 | 4 53 94 59 32 81 69 9 21 87 94 71 90 16 65 96 100 78 13 16 Regions Visited 19 Branch Regions 11 Pre-discovered Areas 5 | . . . 1 . . . . . . . 1 . . . . 3 . . . Known Exits Taken 14 | . . . . 1 1 . 1 1 1 1 1 1 1 1 1 1 1 1 . Unknown Exits Taken 4 | 1 1 1 1 . . . . . . . . . . . . . . . . Scrap Searched 23 | . . 1 . . . . . . 3 5 . 3 . 4 3 . 4 . . Spaces Dug 9 | . . . . . . . . . . . . . . . . . 1 2 6 Terrain Destroyed 291 | . . 21 . . 72 179 . . . . . . . . 7 . 4 2 6 Melee 9 | . . . . . . . . . . . . . . . . . 1 2 6 Projectile 11 | . . 1 . . . . . . . . . . . . 7 . 3 . . AOE 271 | . . 20 . . 72 179 . . . . . . . . . . . . . Terrain Rammed . | . . . . . . . . . . . . . . . . . . . . Walls Destroyed . | . . . . . . . . . . . . . . . . . . . . Machines Disabled . | . . . . . . . . . . . . . . . . . . . . Actions | -11 -10 -10 -10 -9 -8 -8 -7 -6 -6 -6 -6 -5 -5 -5 -5 -5 -4 -4 -3 --------- Run | Jun Mat Min Exi Min Mat Gar Fac Fac Low Low Dat Pro Fac Upp Upp Zhi Pro Fac Res Total 14809 | 104 352 585 319 175 1418 1571 1078 726 793 984 91 1482 601 561 1198 679 768 691 633 Wait 1381 | 16 16 1 . 5 263 175 337 63 3 18 . 207 116 54 9 2 . 39 57 Move 12557 | 71 306 551 314 155 971 1235 641 639 775 938 91 1238 474 490 1169 624 750 604 521 Hop . | . . . . . . . . . . . . . . . . . . . . Pick Up 54 | 6 9 4 1 . 10 7 3 5 . 2 . 3 . 1 1 . . . 2 Fast Attach 129 | 7 1 3 . 2 25 7 16 5 5 5 . 5 5 5 3 7 7 8 13 Attach 45 | . 3 2 1 . 7 1 10 4 . 1 . 8 . . . . . . 8 Detach 22 | . 1 . . 1 4 . 4 1 . 1 . 5 . . . . . 1 4 Swap 18 | 1 1 2 1 . 9 . 1 1 . 2 . . . . . . . . . Drop 122 | . 6 7 2 1 22 15 18 7 5 6 . 7 4 2 . 6 . 8 6 Fire 297 | 3 9 13 . . 85 131 15 . . . . . . . 16 . 5 5 15 Melee 83 | . . . . . 16 . . . 5 11 . 9 2 9 . 8 6 10 7 Ram 7 | . . . . . . . 7 . . . . . . . . . . . . Kick 3 | . . 2 . . 1 . . . . . . . . . . . . . . Crush 30 | . . . . . 4 . 26 . . . . . . . . . . . . Escape Stasis 16 | . . . . . . . . 1 . . . . . . . 15 . . . Rewire 45 | . . . . 11 1 . . . . . . . . . . 17 . 16 . Trap . | . . . . . . . . . . . . . . . . . . . . Miscellaneous . | . . . . . . . . . . . . . . . . . . . . Route ------- -11/Junkyard -10/Materials (discovered 2 exits: [*Mat] / [*Min]) -10/Mines (discovered 3 exits: [*Mat x2] / *Exi) -10/Exiles -9/Mines -8/Materials -8/Garrison (discovered 3 exits: *Fac x3) -7/Factory -6/Factory (discovered 2 exits: *Low x2) -6/Lower Caves -6/Lower Caves (discovered 2 exits: *Fac / *Dat) -6/Data Miner -5/Proximity Caves -5/Factory -5/Upper Caves -5/Upper Caves (discovered 2 exits: *Fac / *Zhi) -5/Zhirov -4/Proximity Caves -4/Factory -3/Research History --------- Turn | Location | Event 15 | -11/Junkyard | Discovered new exit (range 15) 113 | -11/Junkyard | Entered Materials 312 | -10/Materials | Build established: Mutant 449 | -10/Materials | Discovered new exit (range 16) 526 | -10/Materials | Discovered new exit (range 5) 538 | -10/Materials | Entered Mines 556 | -10/Mines | Met a Derelict bent on vengeance 569 | -10/Mines | Assembled infested the area 574 | -10/Mines | Assisted by a Guerilla fighting off Assembled 586 | -10/Mines | Discovered new exit (range 15) 678 | -10/Mines | Discovered new exit (range 3) 772 | -10/Mines | A weapon hastily lodged in a ceiling crevice suddenly fell to the ground 1038 | -10/Mines | Learned Materials emergency access door positions 1271 | -10/Mines | Deemed a non-threat by the Exiles lab entrance 1272 | -10/Mines | Discovered new exit (range 5) 1277 | -10/Mines | Entered Exiles 1277 | -10/Exiles | Accompanied by 1 ally 1307 | -10/Exiles | Led the pair of lost Derelicts to a safe place 1309 | -10/Exiles | Met 8R-AWN 1332 | -10/Exiles | Met EX-HEX 1374 | -10/Exiles | Met EX-BIN 1389 | -10/Exiles | Aligned with FarCom system 1391 | -10/Exiles | Given EX-Vault access code 1420 | -10/Exiles | Opened EX-Vault 1430 | -10/Exiles | Found Prototype Device 1432 | -10/Exiles | Identified Cloak of Protection 1477 | -10/Exiles | Warned to stay clear of 0b10 Research branches 1559 | -10/Exiles | Met EX-DEC 1600 | -10/Exiles | Learned location of Zion (-7) 1689 | -10/Exiles | Discovered new exit (range 14) 1707 | -10/Exiles | Left Exiles lab with Cloak of Protection 1707 | -10/Exiles | Entered Mines 1712 | -9/Mines | Found the Drone Emporium 1717 | -9/Mines | Found Prototype Device 1717 | -9/Mines | Identified Sensor Drone Bay 1959 | -9/Mines | Discovered new exit (range 9) 1962 | -9/Mines | Met a Derelict testing a Signal Generator 1975 | -9/Mines | Identified exit to Materials 2025 | -9/Mines | Entered Materials 2025 | -8/Materials | Accompanied by 20 allies 2025 | -8/Materials | Evolved 4 slots: Propulsion x2, Utility x2 3182 | -8/Materials | Lost 7 parts (1p4n2w) 3757 | -8/Materials | Garrison activated, responded to threat 4050 | -8/Materials | Identified exit to Garrison 4050 | -8/Materials | Entered Garrison 4186 | -8/Garrison | Triggered checkpoint 4224 | -8/Garrison | Triggered checkpoint 4304 | -8/Garrison | Installed Relay Interface Framework 4347 | -8/Garrison | Garrison Relay disabled 4405 | -8/Garrison | Expanded RIF knowledge: Program Shield 4501 | -8/Garrison | Triggered checkpoint 4625 | -8/Garrison | Triggered checkpoint 4674 | -8/Garrison | Triggered checkpoint 4715 | -8/Garrison | Triggered checkpoint 4804 | -8/Garrison | Triggered checkpoint 4830 | -8/Garrison | Discovered new exit (range 14) 4937 | -8/Garrison | Garrison Relay disabled 5102 | -8/Garrison | Triggered checkpoint 5174 | -8/Garrison | Garrison Relay disabled 5377 | -8/Garrison | Discovered new exit (range 12) 5619 | -8/Garrison | Discovered new exit (range 15) 5619 | -8/Garrison | Discovered new exit (range 80) 5619 | -8/Garrison | Discovered new exit (range 102) 5712 | -8/Garrison | Triggered checkpoint 5726 | -8/Garrison | Triggered checkpoint 5728 | -8/Garrison | Garrison Relay disabled 6607 | -8/Garrison | Entered Factory 6607 | -7/Factory | Evolved 2 slots: Utility x2 7007 | -7/Factory | First assault squad dispatched 7122 | -7/Factory | Lost 4 parts (1p2u1w) 7538 | -7/Factory | Discovered new exit (range 16) 7541 | -7/Factory | Build established: Scavenger-Mutant 7751 | -7/Factory | Identified exit to Factory 7752 | -7/Factory | Entered another Factory area 7752 | -6/Factory | Evolved 2 slots: Power x1, Utility x1 7862 | -6/Factory | Identified exit to DSF 7896 | -6/Factory | Identified exit to Lower Caves 8145 | -6/Factory | Entered Lower Caves 8146 | -6/Lower Caves | Encountered a Warlord checkpoint 8404 | -6/Lower Caves | Spotted B-75 Beast 8473 | -6/Lower Caves | Discovered new exit (range 11) 8507 | -6/Lower Caves | Identified exit to Lower Caves 8546 | -6/Lower Caves | Entered another Lower Caves area 8547 | -6/Lower Caves | Encountered a Warlord checkpoint 8710 | -6/Lower Caves | Discovered new exit (range 9) 8713 | -6/Lower Caves | Identified exit to Factory 8776 | -6/Lower Caves | Learned Factory emergency access door positions 8968 | -6/Lower Caves | Discovered new exit (range 7) 8970 | -6/Lower Caves | Identified exit to Data Miner 8998 | -6/Lower Caves | Entered Data Miner 8998 | -6/Data Miner | Discovered new exit (range 6) 9001 | -6/Data Miner | Identified exit to Proximity Caves 9005 | -6/Data Miner | Met Data Miner 9012 | -6/Data Miner | Learned location of Section 7 (-2) 9012 | -6/Data Miner | Acquired the access code to Warlord's prototype stash 9017 | -6/Data Miner | Received God Mode back door access code from Data Miner 9027 | -6/Data Miner | Entered Proximity Caves 9031 | -5/Proximity Caves | Spotter reported a threat 9031 | -5/Proximity Caves | Spotter reported a threat 9062 | -5/Proximity Caves | Escorted by Enhanced Grunt 9329 | -5/Proximity Caves | Found Alien Artifact 9329 | -5/Proximity Caves | Identified Dimensional Node Initializer 9329 | -5/Proximity Caves | Initialized slip node 9373 | -5/Proximity Caves | Lost 4 parts (2p1n1u) 9614 | -5/Proximity Caves | Build established: Hacker-Mutant 9698 | -5/Proximity Caves | Learned Factory machine intel 9722 | -5/Proximity Caves | Discovered exit to Factory (range 6) 9725 | -5/Proximity Caves | Entered Factory 9725 | -5/Factory | Evolved 2 slots: Utility x2 9727 | -5/Factory | Loaded intel: 260 machine locations 9745 | -5/Factory | Spotted B-75 Beast 9964 | -5/Factory | Fabricated X-62 Marksman (x2) 10025 | -5/Factory | Search patrols dispatched 10025 | -5/Factory | Discovered new exit (range 8) 10028 | -5/Factory | Identified exit to Upper Caves 10039 | -5/Factory | Entered Upper Caves 10168 | -5/Upper Caves | Attracted the attention of an 0b10 checkpoint 10237 | -5/Upper Caves | Spotted B-75 Beast 10295 | -5/Upper Caves | Discovered new exit (range 9) 10301 | -5/Upper Caves | Identified exit to Upper Caves 10301 | -5/Upper Caves | Entered another Upper Caves area 10459 | -5/Upper Caves | Learned Factory terminal intel 10488 | -5/Upper Caves | Attracted the attention of an 0b10 checkpoint 10503 | -5/Upper Caves | Learned Factory security intel 10555 | -5/Upper Caves | Discovered new exit (range 4) 10556 | -5/Upper Caves | Identified exit to Factory 10742 | -5/Upper Caves | Discovered new exit (range 5) 10743 | -5/Upper Caves | Learned location of 1 exit from Factory 10745 | -5/Upper Caves | Identified exit to Zhirov 10745 | -5/Upper Caves | Entered Zhirov 10745 | -5/Zhirov | Discovered new exit (range 4) 10748 | -5/Zhirov | Identified exit to Proximity Caves 10756 | -5/Zhirov | Met Zhirov 10763 | -5/Zhirov | Learned location of Quarantine (-2) 10763 | -5/Zhirov | Learned location of Testing (-3) 10763 | -5/Zhirov | Learned location of Command (-1) 10767 | -5/Zhirov | Zhirov requested help retrieving the SGEMP Prototype 10772 | -5/Zhirov | Found Alien Artifact 10772 | -5/Zhirov | Identified Integrated Dissipator 10772 | -5/Zhirov | Installed Integrated Dissipator, increased core heat dissipation (+20) 10780 | -5/Zhirov | Found Alien Artifact 10780 | -5/Zhirov | Identified Transdimensional Reconstructor 10780 | -5/Zhirov | Warped through subspace 10935 | -5/Zhirov | Cloak Generator disabled 10935 | -5/Zhirov | Attacked by Zhirov 10965 | -5/Zhirov | Zhirov detonated his lab 10966 | -5/Zhirov | Core integrity fell below 50% 10982 | -5/Zhirov | Crushed by falling debris 11013 | -5/Zhirov | Lost 3 parts (2u1w) 11065 | -5/Zhirov | Entered Proximity Caves 11200 | -4/Proximity Caves | Spotter reported a threat 11305 | -4/Proximity Caves | Spotter reported a threat 11318 | -4/Proximity Caves | Learned 4 Research zone layouts 11358 | -4/Proximity Caves | Spotter reported a threat 11404 | -4/Proximity Caves | Discovered exit to Factory (range 15) 11412 | -4/Proximity Caves | Entered Factory 11412 | -4/Factory | Evolved 2 slots: Utility x2 11413 | -4/Factory | Identified exit to Research 11415 | -4/Factory | Loaded intel: 26 terminal locations 11695 | -4/Factory | Search patrols dispatched 11726 | -4/Factory | Lost 4 parts (3n1u) 11781 | -4/Factory | Entered Research 11781 | -3/Research | Evolved 2 slots: Utility x2 12052 | -3/Research | Spotted B-86 Titan 12103 | -3/Research | Core integrity fell below 50% 12106 | -3/Research | Lost 15 parts (1p5n8u1w) 12125 | -3/Research | Core integrity fell below 20% 12138 | -3/Research | Destroyed by B-86 Titan with Matter Neutralizer Last Messages --------------- 12102_ S-43 Plague destroyed. 12111_ Imp. Arc Projector destroyed. 12126_ Adv. Signal Interpreter destroyed. 12127_ P-80 Master repels hacking attempt. 12128_ B-86 Titan activates siege mode. 12128_ Jacked B-86 Titan... 12128_ Command string: \\T9HJ 12128_ No effect. 12129_ P-80 Master repels hacking attempt. 12129_ Knocked back. 12129_ Slug penetrates S-43 Plague. 12129_ Penetrated by Slug. 12129_ Microactuators destroyed. 12130_ Jacked B-86 Titan... 12130_ Command string: \\T9HJ 12130_ No effect. 12131_ P-80 Master repels hacking attempt. 12136_ Adv. Remote Datajack destroyed. 12137_ System corrupted: Matter fused (-7). [Achievement: This Is Interesting...] Map ----- +----------------------------------------------------+ | ?????????????????????????????????????????????????? | | ?????????????????????????????????????????????????? | | ?????????????????????????????????????????????????? | | ?????????????????????????????????????????????????? | | ?????????????????????????????????????????????????? | | ?????????????????????????????????????????????????? | | ?????????????????????????????????????????????????? | | ?????????????????????????????????????????????????? | | ?????????????????????????????????????????????????? | | ?????????????????????????????????????????????????? | | ??????#########??????????????????????????????????? | | ??????? ???????????????????????????????????? | | ??????? ???????????????????????????????????? | | ???????? ??????????????Y?????????????????????? | | ???????? ????????????????????????????????????? | | ????????? ?????????????????????????????????????? | | ##??????? ?????????????????????????????????????? | | "#########+#########+###?????????????????????????? | | p #?????????????????????????? | | p BB#?????????????????????????? | | ##############BB#?????????????????????????? | | % #????????????# ;##########???????????????? | | #????????????#= ; #???????????????? | | "Y" #???? ??????#%[;s #???????????????? | | "" #????? ????# ;ss #???????????????? | | #????? """??#ss# @ % #???????????????? | | #??# """ #ss# #???????????????? | | ?+ """ /p=p% #???????????????? | | #####+##?# # #= ""T"" #???????????????? | | #????????# + # """"" #???????????????? | | ##????????###########+############???????????????? | | ???????????????# #????????????????????? | | ???????????????# = #????????????????????? | | ???????????????# #????????????????????? | | ???????????????# #????????????????????? | | ???????????????# #????????????????????? | | ???????????????##############????????????????????? | | ?????????????????????????????????????????????????? | | ?????????????????????????????????????????????????? | | ?????????????????????????????????????????????????? | | ?????????????????????????????????????????????????? | | ?????????????????????????????????????????????????? | | ?????????????????????????????????????????????????? | | ?????????????????????????????????????????????????? | | ?????????????????????????????????????????????????? | | ?????????????????????????????????????????????????? | | ?????????????????????????????????????????????????? | | ?????????????????????????????????????????????????? | | ?????????????????????????????????????????????????? | | ?????????????????????????????????????????????????? | +----------------------------------------------------+ Best States ------------- Heat Dissipation 66 Energy Generation 33 Energy Capacity 550 Matter Stores 300 Matter Capacity 300 Sight Range 20 Terrain Scan Range 20 Terrain Scan Density 85 Cloak Strength 5 Power Amplification 30 Armor Coverage 225 Resistance: KI 20 Resistance: TH 20 Resistance: EX 20 Resistance: EM 20 Resistance: I 20 Resistance: S 20 Resistance: P 20 Core Shielding 30 Evasion (%) 63 Targeting Accuracy 8 Melee Accuracy 11 Target Analysis 6 Recoil Reduction 4 Offensive Hacking 21 Defensive Hacking 12 Relay Coupler Types 2 Relay Coupler Value 49 Item Schematics ----------------- Remote Datajack | -6/Factory | Scanalyzed Combat Drone Bay | -6/Data Miner | Free Lgt. Regenerative Plating | -6/Data Miner | Free Cld. Gravmag System | -6/Data Miner | Free Prc. Matter Filter | -6/Data Miner | Free Tesla Bomb Launcher | -6/Data Miner | Free Imp. Gyrokinetic Inverter | -6/Data Miner | Free Imp. Force Booster | -6/Data Miner | Free Dispersion Rifle | -6/Data Miner | Free Hvy. Phase Cannon | -6/Data Miner | Free Imp. Linear Gravjet | -6/Data Miner | Free Impulse Thruster Array | -6/Data Miner | Free Assault Drone Bay | -5/Zhirov | Free Exp. Heat Sink | -5/Zhirov | Free Exp. Optical Array | -5/Zhirov | Free Imp. Arc Thrower | -5/Zhirov | Free Robot Schematics ------------------ X-62 Marksman | -6/Data Miner | Free R-10 Processor | -6/Data Miner | Free E-15 Imp | -6/Data Miner | Free Fabricated ------------ X-62 Marksman | x2 | -5/Factory Alien Tech Used ----------------- Dimensional Node Initializer Integrated Dissipator Transdimensional Reconstructor Achievements -------------- Adventurer Alien Tech Armchair Analyst Assimilation Complete Explorer Exposed Maybe Next Time I'll Detach My Launcher My Command Is Your Wish Release The Drones! Subspace Traveler The Science Guy This Is Interesting... Challenges ------------ None Game ------ Seed GravityReactionDevice Manual? 0 Play Time 03:00:14 Cumulative 30.9 hours Start 2023.04.05 @ 23:15:59 End 2023.04.07 @ 12:29:51 Sessions 9 Manual Loads 0 Difficulty Adventurer Special Mode None Game No. 14 Rogue 0 Adventurer 14 Explorer 0 Win Type - Total 0 Types 0/0/0/0/0/0/0/0/0 Lore% 25 Gallery% 34 Achievement% 30 Wizard Run 0 Options --------- ASCII 0 Keyboard 0 Movement Mouse Keybinds 0 Fullscreen 1 Font 18/X11 Map View 76x50 Tactical HUD 1 Map Filters NONE Filters NONE Steam 1 RUN: 278cbe70-9acf-4bd5-9202-d2fd030ea7fa